[Event "*** SCC Grand Prix: Titled Tuesday Blitz"]
[Site "Chess.com"]
[Date "2020.08.11"]
[Round "4"]
[White "Alexsur1981"]
[Black "KuzubovYuriy"]
[Result "1-0"]
[WhiteElo "2576"]
[BlackElo "2822"]
[TimeControl "180+1"]
[EndTime "10:40:50 PDT"]
[Termination "Alexsur1981 won by resignation"]

1. e4 {[%clk 0:03:00.9]} 1... c5 {[%clk 0:02:59.1]} 2. Nc3 {[%clk 0:03:00.5]}
2... d6 {[%clk 0:02:56]} 3. Nf3 {[%clk 0:02:55.2]} 3... e5 {[%clk 0:02:55.3]} 4.
Bc4 {[%clk 0:02:54.3]} 4... Be7 {[%clk 0:02:55.4]} 5. d3 {[%clk 0:02:53.8]} 5...
Be6 {[%clk 0:02:54.4]} 6. Nd5 {[%clk 0:02:41.5]} 6... Nf6 {[%clk 0:02:47.9]} 7.
Nxf6+ {[%clk 0:02:39.5]} 7... Bxf6 {[%clk 0:02:47.8]} 8. Bxe6 {[%clk 0:02:31]}
8... fxe6 {[%clk 0:02:47.4]} 9. O-O {[%clk 0:02:29]} 9... Nc6 {[%clk 0:02:45.8]}
10. Be3 {[%clk 0:02:19.7]} 10... Qe7 {[%clk 0:02:30.8]} 11. c3 {[%clk
0:02:16.6]} 11... d5 {[%clk 0:02:25.6]} 12. Qe2 {[%clk 0:02:06.9]} 12... O-O
{[%clk 0:02:15.7]} 13. Rad1 {[%clk 0:02:02.5]} 13... Rad8 {[%clk 0:02:09]} 14.
Bc1 {[%clk 0:01:57.5]} 14... h6 {[%clk 0:02:07]} 15. h3 {[%clk 0:01:55.2]} 15...
a6 {[%clk 0:02:02.9]} 16. Rfe1 {[%clk 0:01:50.6]} 16... Qc7 {[%clk 0:01:59.9]}
17. Nd2 {[%clk 0:01:48.6]} 17... b5 {[%clk 0:01:55.9]} 18. Nf1 {[%clk
0:01:45.6]} 18... Bh4 {[%clk 0:01:52.6]} 19. g3 {[%clk 0:01:44.1]} 19... Bf6
{[%clk 0:01:51.2]} 20. Nh2 {[%clk 0:01:42]} 20... d4 {[%clk 0:01:47.6]} 21. Ng4
{[%clk 0:01:40.5]} 21... Be7 {[%clk 0:01:42.3]} 22. Rf1 {[%clk 0:01:36.7]} 22...
Bd6 {[%clk 0:01:40.7]} 23. Kg2 {[%clk 0:01:34.7]} 23... Kh7 {[%clk 0:01:34.9]}
24. h4 {[%clk 0:01:24.1]} 24... Rf7 {[%clk 0:01:32.5]} 25. Bd2 {[%clk
0:01:14.9]} 25... Rdf8 {[%clk 0:01:30.7]} 26. b3 {[%clk 0:01:11.6]} 26... dxc3
{[%clk 0:01:15.6]} 27. Bxc3 {[%clk 0:01:11.2]} 27... Qd7 {[%clk 0:01:14.9]} 28.
Rc1 {[%clk 0:01:08.7]} 28... Rc8 {[%clk 0:01:14.3]} 29. h5 {[%clk 0:01:05]}
29... Qd8 {[%clk 0:01:10.2]} 30. Nh2 {[%clk 0:00:54.7]} 30... Qg5 {[%clk
0:01:07.5]} 31. Qg4 {[%clk 0:00:53.6]} 31... Qxg4 {[%clk 0:01:06.5]} 32. Nxg4
{[%clk 0:00:54.5]} 32... Kg8 {[%clk 0:01:04.8]} 33. Rc2 {[%clk 0:00:52.9]} 33...
Rd7 {[%clk 0:01:03.9]} 34. Kf3 {[%clk 0:00:50.3]} 34... Rdc7 {[%clk 0:01:01.6]}
35. Ke2 {[%clk 0:00:46.8]} 35... Nd4+ {[%clk 0:00:46.2]} 36. Bxd4 {[%clk
0:00:46.8]} 36... cxd4 {[%clk 0:00:46.3]} 37. Rxc7 {[%clk 0:00:44.4]} 37... Rxc7
{[%clk 0:00:47.2]} 38. Rd1 {[%clk 0:00:44.2]} 38... Kf7 {[%clk 0:00:41.8]} 39.
f3 {[%clk 0:00:32.8]} 39... Ke8 {[%clk 0:00:38.8]} 40. Kd2 {[%clk 0:00:30.7]}
40... Bb4+ {[%clk 0:00:35.1]} 41. Ke2 {[%clk 0:00:30.9]} 41... Rc2+ {[%clk
0:00:34.7]} 42. Kf1 {[%clk 0:00:31.4]} 42... Rxa2 {[%clk 0:00:32.3]} 43. Rc1
{[%clk 0:00:30.7]} 43... Bc3 {[%clk 0:00:26.8]} 44. Nxe5 {[%clk 0:00:29.6]}
44... a5 {[%clk 0:00:27.1]} 45. g4 {[%clk 0:00:22]} 45... a4 {[%clk 0:00:21.7]}
46. bxa4 {[%clk 0:00:22.2]} 46... bxa4 {[%clk 0:00:20.7]} 47. Nc4 {[%clk
0:00:22.7]} 47... Kd7 {[%clk 0:00:16.8]} 48. Rb1 {[%clk 0:00:22.8]} 48... Ra1
{[%clk 0:00:15.6]} 49. Rxa1 {[%clk 0:00:22.4]} 49... Bxa1 {[%clk 0:00:16.5]} 50.
Ke2 {[%clk 0:00:22.7]} 50... Kc6 {[%clk 0:00:13.1]} 51. Kd1 {[%clk 0:00:22.8]}
51... Bc3 {[%clk 0:00:12.3]} 52. Kc2 {[%clk 0:00:23.1]} 52... Be1 {[%clk
0:00:11.8]} 53. f4 {[%clk 0:00:22.8]} 53... Bg3 {[%clk 0:00:10.9]} 54. f5 {[%clk
0:00:23.2]} 54... e5 {[%clk 0:00:10.6]} 55. Kb2 {[%clk 0:00:22.4]} 55... Kd7
{[%clk 0:00:10.6]} 56. Ka3 {[%clk 0:00:22.8]} 56... Ke7 {[%clk 0:00:11.1]} 57.
Kxa4 {[%clk 0:00:20.4]} 57... Kf6 {[%clk 0:00:11.6]} 58. Nd6 {[%clk 0:00:20.9]}
58... Kg5 {[%clk 0:00:10.2]} 59. Ne8 {[%clk 0:00:21.1]} 59... Kxg4 {[%clk
0:00:10]} 60. Nxg7 {[%clk 0:00:21.6]} 60... Bh4 {[%clk 0:00:08.7]} 61. Kb5
{[%clk 0:00:22.1]} 61... Bf6 {[%clk 0:00:07.7]} 62. Ne8 {[%clk 0:00:22.2]} 62...
Be7 {[%clk 0:00:07.8]} 63. f6 {[%clk 0:00:22.6]} 63... Bf8 {[%clk 0:00:07.9]}
64. Ng7 {[%clk 0:00:23.1]} 64... Kg5 {[%clk 0:00:07.6]} 65. Ne6+ {[%clk
0:00:19.9]} 65... Kxh5 {[%clk 0:00:06.3]} 66. Nxf8 {[%clk 0:00:20.8]} 66... Kg5
{[%clk 0:00:05.9]} 67. f7 {[%clk 0:00:20.8]} 67... Kf6 {[%clk 0:00:06.1]} 68.
Ng6 {[%clk 0:00:21.3]} 68... Kxf7 {[%clk 0:00:06.1]} 69. Nxe5+ {[%clk
0:00:22.2]} 69... Ke6 {[%clk 0:00:05.7]} 70. Nf3 {[%clk 0:00:22.6]} 1-0

[Event "*** SCC Grand Prix: Titled Tuesday Blitz"]
[Site "Chess.com"]
[Date "2020.08.11"]
[Round "4"]
[White "MVM2008"]
[Black "XiaoKangZhong"]
[Result "0-1"]
[WhiteElo "2209"]
[BlackElo "2423"]
[TimeControl "180+1"]
[EndTime "10:40:50 PDT"]
[Termination "XiaoKangZhong won by checkmate"]

1. e4 {[%clk 0:03:00.9]} 1... c6 {[%clk 0:02:56.9]} 2. d4 {[%clk 0:02:58.7]}
2... d5 {[%clk 0:02:57.8]} 3. exd5 {[%clk 0:02:57.7]} 3... cxd5 {[%clk
0:02:57.1]} 4. c4 {[%clk 0:02:56.3]} 4... Nf6 {[%clk 0:02:55.8]} 5. Nf3 {[%clk
0:02:54.7]} 5... g6 {[%clk 0:02:52.1]} 6. Nc3 {[%clk 0:02:52.2]} 6... Bg7 {[%clk
0:02:49.2]} 7. cxd5 {[%clk 0:02:36]} 7... O-O {[%clk 0:02:47]} 8. Bc4 {[%clk
0:02:28.7]} 8... Nbd7 {[%clk 0:02:38.7]} 9. O-O {[%clk 0:02:08]} 9... Nb6 {[%clk
0:02:35.7]} 10. Bb3 {[%clk 0:02:07.5]} 10... Nfxd5 {[%clk 0:02:26.4]} 11. h3
{[%clk 0:01:56.6]} 11... Be6 {[%clk 0:02:08.4]} 12. Ne4 {[%clk 0:01:21.1]} 12...
Nc7 {[%clk 0:01:53.5]} 13. Bc2 {[%clk 0:01:07]} 13... Rc8 {[%clk 0:01:40.1]} 14.
Re1 {[%clk 0:00:21.3]} 14... Nb5 {[%clk 0:01:24.9]} 15. Be3 {[%clk 0:00:10]}
15... Nc4 {[%clk 0:01:15.6]} 16. a4 {[%clk 0:00:03.4]} 16... Nbd6 {[%clk
0:01:02.3]} 17. Nxd6 {[%clk 0:00:03]} 17... Qxd6 {[%clk 0:01:01.9]} 18. b3
{[%clk 0:00:03]} 18... Nxe3 {[%clk 0:01:01.9]} 19. Rxe3 {[%clk 0:00:02.9]} 19...
Bd5 {[%clk 0:00:59.6]} 20. Rd3 {[%clk 0:00:02.8]} 20... Bxf3 {[%clk 0:00:57]}
21. Rxf3 {[%clk 0:00:02.2]} 21... Bxd4 {[%clk 0:00:56]} 22. Rd3 {[%clk
0:00:01.9]} 22... e5 {[%clk 0:00:56.5]} 23. Kh1 {[%clk 0:00:01.7]} 23... Qc6
{[%clk 0:00:55.7]} 24. Rc1 {[%clk 0:00:01.5]} 24... Bb2 {[%clk 0:00:27]} 25. Rd2
{[%clk 0:00:01.9]} 25... Bxc1 {[%clk 0:00:27]} 26. Qxc1 {[%clk 0:00:02.8]} 26...
Rfd8 {[%clk 0:00:27.3]} 27. Rxd8+ {[%clk 0:00:03.1]} 27... Rxd8 {[%clk
0:00:28.2]} 28. Qb1 {[%clk 0:00:03.5]} 28... Rc8 {[%clk 0:00:27.7]} 29. Be4
{[%clk 0:00:03.8]} 29... Qc1+ {[%clk 0:00:27.8]} 30. Qxc1 {[%clk 0:00:04.7]}
30... Rxc1+ {[%clk 0:00:28.4]} 31. Kh2 {[%clk 0:00:05.6]} 31... b6 {[%clk
0:00:29.1]} 32. Bd5 {[%clk 0:00:05.8]} 32... Rd1 {[%clk 0:00:28.3]} 33. Bc4
{[%clk 0:00:05.6]} 33... Rd4 {[%clk 0:00:28.1]} 34. Kg3 {[%clk 0:00:05.6]} 34...
Kf8 {[%clk 0:00:28.6]} 35. Kf3 {[%clk 0:00:05.3]} 35... f6 {[%clk 0:00:29]} 36.
Ke3 {[%clk 0:00:05.4]} 36... Ke7 {[%clk 0:00:29.2]} 37. g3 {[%clk 0:00:05.5]}
37... h6 {[%clk 0:00:29]} 38. f4 {[%clk 0:00:05.6]} 38... g5 {[%clk 0:00:29.5]}
39. fxg5 {[%clk 0:00:05.2]} 39... hxg5 {[%clk 0:00:29.1]} 40. g4 {[%clk
0:00:05.2]} 40... Kd6 {[%clk 0:00:29]} 41. Bg8 {[%clk 0:00:03.3]} 41... Kc5
{[%clk 0:00:26.9]} 42. Bc4 {[%clk 0:00:03.8]} 42... Kb4 {[%clk 0:00:26.7]} 43.
Be6 {[%clk 0:00:03.2]} 43... a6 {[%clk 0:00:26.6]} 44. Bf7 {[%clk 0:00:02.7]}
44... b5 {[%clk 0:00:26.8]} 45. axb5 {[%clk 0:00:02.6]} 45... axb5 {[%clk
0:00:27.7]} 46. Be6 {[%clk 0:00:02.6]} 46... Ka3 {[%clk 0:00:27.5]} 47. Bf7
{[%clk 0:00:02.2]} 47... b4 {[%clk 0:00:28]} 48. Be6 {[%clk 0:00:01.4]} 48...
Kb2 {[%clk 0:00:28.2]} 49. Bf7 {[%clk 0:00:01.6]} 49... Kc3 {[%clk 0:00:28.3]}
50. Be6 {[%clk 0:00:01.8]} 50... Rd1 {[%clk 0:00:24.7]} 51. Ke4 {[%clk
0:00:01.6]} 51... Rf1 {[%clk 0:00:25]} 52. Bf5 {[%clk 0:00:01.5]} 52... Rf4+
{[%clk 0:00:24.6]} 53. Kd5 {[%clk 0:00:02.4]} 53... Kxb3 {[%clk 0:00:24.9]} 54.
Ke6 {[%clk 0:00:02.6]} 54... e4 {[%clk 0:00:24.5]} 55. Kxf6 {[%clk 0:00:03.5]}
55... e3 {[%clk 0:00:25.1]} 56. Kxg5 {[%clk 0:00:03.8]} 56... Rxf5+ {[%clk
0:00:22.4]} 57. gxf5 {[%clk 0:00:03.9]} 57... e2 {[%clk 0:00:23.3]} 58. f6
{[%clk 0:00:04.5]} 58... e1=Q {[%clk 0:00:24.2]} 59. f7 {[%clk 0:00:05]} 59...
Qf2 {[%clk 0:00:25.1]} 60. Kg6 {[%clk 0:00:05]} 60... Kc2 {[%clk 0:00:25.4]} 61.
h4 {[%clk 0:00:05.1]} 61... b3 {[%clk 0:00:24.6]} 62. h5 {[%clk 0:00:06]} 62...
b2 {[%clk 0:00:23.6]} 63. h6 {[%clk 0:00:06.9]} 63... b1=Q {[%clk 0:00:24.1]}
64. h7 {[%clk 0:00:07.8]} 64... Kc1+ {[%clk 0:00:24.6]} 65. Kg7 {[%clk
0:00:07.9]} 65... Qbb2+ {[%clk 0:00:24]} 66. Kg8 {[%clk 0:00:08]} 66... Qb8+
{[%clk 0:00:19.4]} 67. Kg7 {[%clk 0:00:07.5]} 67... Qfg3+ {[%clk 0:00:19.4]} 68.
Kh6 {[%clk 0:00:07.5]} 68... Qbd6+ {[%clk 0:00:18]} 69. Kh5 {[%clk 0:00:07.3]}
69... Qdg6# {[%clk 0:00:18.9]} 0-1

[Event "*** SCC Grand Prix: Titled Tuesday Blitz"]
[Site "Chess.com"]
[Date "2020.08.11"]
[Round "4"]
[White "Fortitudine"]
[Black "enriquebutti"]
[Result "1-0"]
[WhiteElo "2265"]
[BlackElo "1810"]
[TimeControl "180+1"]
[EndTime "10:40:50 PDT"]
[Termination "Fortitudine won by resignation"]

1. c4 {[%clk 0:03:00.9]} 1... e5 {[%clk 0:02:58.9]} 2. g3 {[%clk 0:03:01]} 2...
Nc6 {[%clk 0:02:58]} 3. Bg2 {[%clk 0:03:01.2]} 3... g6 {[%clk 0:02:57.3]} 4. Nc3
{[%clk 0:03:00.8]} 4... Bg7 {[%clk 0:02:56.4]} 5. e4 {[%clk 0:03:01]} 5... d6
{[%clk 0:02:56]} 6. Nge2 {[%clk 0:03:00.7]} 6... f5 {[%clk 0:02:55.4]} 7. d3
{[%clk 0:03:00.6]} 7... Nf6 {[%clk 0:02:54.8]} 8. O-O {[%clk 0:03:00.6]} 8...
O-O {[%clk 0:02:54]} 9. h3 {[%clk 0:02:29.1]} 9... f4 {[%clk 0:02:51.9]} 10.
gxf4 {[%clk 0:02:25.4]} 10... Nh5 {[%clk 0:02:50.8]} 11. fxe5 {[%clk 0:02:25]}
11... dxe5 {[%clk 0:02:47.6]} 12. Nd5 {[%clk 0:02:23.1]} 12... Nd4 {[%clk
0:02:26.3]} 13. Nxd4 {[%clk 0:02:20.1]} 13... exd4 {[%clk 0:02:25.5]} 14. f4
{[%clk 0:02:03.3]} 14... c6 {[%clk 0:02:24.4]} 15. Nb4 {[%clk 0:02:03.1]} 15...
Qh4 {[%clk 0:02:19.3]} 16. Qe1 {[%clk 0:01:39.1]} 16... Qxe1 {[%clk 0:02:17.6]}
17. Rxe1 {[%clk 0:01:38.6]} 17... Nxf4 {[%clk 0:02:16.6]} 18. Bxf4 {[%clk
0:01:27.6]} 18... Rxf4 {[%clk 0:02:15.3]} 19. Rf1 {[%clk 0:01:25.1]} 19... Rxf1+
{[%clk 0:02:09.2]} 20. Rxf1 {[%clk 0:01:22.5]} 20... Be6 {[%clk 0:02:07.7]} 21.
Nc2 {[%clk 0:01:09.4]} 21... Rf8 {[%clk 0:02:01.2]} 22. Rxf8+ {[%clk 0:01:09]}
22... Kxf8 {[%clk 0:02:00.8]} 23. Kf2 {[%clk 0:01:08.3]} 23... Be5 {[%clk
0:01:58.2]} 24. Kf3 {[%clk 0:01:05]} 24... g5 {[%clk 0:01:54.5]} 25. b3 {[%clk
0:00:55]} 25... h5 {[%clk 0:01:52.3]} 26. Kf2 {[%clk 0:00:43.6]} 26... Kg7
{[%clk 0:01:49.5]} 27. Ne1 {[%clk 0:00:39.4]} 27... Kf6 {[%clk 0:01:45.7]} 28.
Nf3 {[%clk 0:00:37.2]} 28... g4 {[%clk 0:01:44.3]} 29. hxg4 {[%clk 0:00:36.2]}
29... hxg4 {[%clk 0:01:43.2]} 30. Nxe5 {[%clk 0:00:32.3]} 30... Kxe5 {[%clk
0:01:41.9]} 31. Kg3 {[%clk 0:00:32.9]} 31... b5 {[%clk 0:01:34.7]} 32. cxb5
{[%clk 0:00:26]} 32... cxb5 {[%clk 0:01:33.3]} 33. Bf1 {[%clk 0:00:26.6]} 33...
a5 {[%clk 0:01:22.4]} 34. Be2 {[%clk 0:00:26.2]} 34... b4 {[%clk 0:01:21.4]} 35.
Bxg4 {[%clk 0:00:25.6]} 35... Bf7 {[%clk 0:01:19.1]} 36. Bd1 {[%clk 0:00:19.3]}
36... a4 {[%clk 0:01:16.2]} 37. Kh4 {[%clk 0:00:15.1]} 37... a3 {[%clk
0:01:15.4]} 38. Kg5 {[%clk 0:00:14.4]} 38... Be6 {[%clk 0:01:14.7]} 39. Kg6
{[%clk 0:00:14.1]} 39... Kf4 {[%clk 0:01:12.8]} 40. Kf6 {[%clk 0:00:14.4]} 40...
Bh3 {[%clk 0:01:10.5]} 41. e5 {[%clk 0:00:13.5]} 41... Ke3 {[%clk 0:01:09.8]}
42. Bh5 {[%clk 0:00:10.4]} 42... Kxd3 {[%clk 0:01:06]} 43. Bg6+ {[%clk 0:00:11]}
43... Kc3 {[%clk 0:01:05.4]} 44. Bf5 {[%clk 0:00:09.4]} 44... Bg2 {[%clk
0:01:04.8]} 45. e6 {[%clk 0:00:08.6]} 45... Bc6 {[%clk 0:01:03.7]} 46. Ke7
{[%clk 0:00:04.5]} 46... d3 {[%clk 0:01:02]} 47. Kd6 {[%clk 0:00:05.1]} 47...
Bb5 {[%clk 0:01:00.2]} 48. Kc5 {[%clk 0:00:05.1]} 48... Be8 {[%clk 0:00:59.1]}
49. e7 {[%clk 0:00:04.7]} 49... d2 {[%clk 0:00:58.1]} 50. Bg4 {[%clk 0:00:05.3]}
50... Bf7 {[%clk 0:00:53.2]} 51. Bd1 {[%clk 0:00:05]} 51... Be8 {[%clk 0:00:49]}
52. Be2 {[%clk 0:00:04.8]} 52... Kc2 {[%clk 0:00:48.1]} 53. Kxb4 {[%clk
0:00:05.7]} 53... d1=Q {[%clk 0:00:46.7]} 54. Bxd1+ {[%clk 0:00:06.1]} 54...
Kxd1 {[%clk 0:00:46.4]} 55. Kxa3 {[%clk 0:00:06.8]} 55... Kc2 {[%clk 0:00:45.6]}
56. Kb4 {[%clk 0:00:07.7]} 56... Kb2 {[%clk 0:00:45.4]} 57. a4 {[%clk
0:00:08.6]} 57... Kc2 {[%clk 0:00:44.7]} 58. a5 {[%clk 0:00:09.5]} 58... Kd3
{[%clk 0:00:44.5]} 59. a6 {[%clk 0:00:10]} 1-0

[Event "*** SCC Grand Prix: Titled Tuesday Blitz"]
[Site "Chess.com"]
[Date "2020.08.11"]
[Round "4"]
[White "viktorskliarov"]
[Black "timator"]
[Result "1-0"]
[WhiteElo "2583"]
[BlackElo "2684"]
[TimeControl "180+1"]
[EndTime "10:40:51 PDT"]
[Termination "viktorskliarov won by resignation"]

1. e4 {[%clk 0:03:00.4]} 1... c5 {[%clk 0:02:31.1]} 2. Nf3 {[%clk 0:02:55.7]}
2... e6 {[%clk 0:02:30.9]} 3. c3 {[%clk 0:02:54.8]} 3... Nf6 {[%clk 0:02:26.6]}
4. Bd3 {[%clk 0:02:54.2]} 4... d6 {[%clk 0:02:25.6]} 5. O-O {[%clk 0:02:53.5]}
5... Nc6 {[%clk 0:02:24.1]} 6. Bc2 {[%clk 0:02:53.9]} 6... Be7 {[%clk
0:02:23.9]} 7. d4 {[%clk 0:02:54.1]} 7... cxd4 {[%clk 0:02:24.1]} 8. cxd4 {[%clk
0:02:53.9]} 8... d5 {[%clk 0:02:24.8]} 9. e5 {[%clk 0:02:51]} 9... Nd7 {[%clk
0:02:24.5]} 10. Nc3 {[%clk 0:02:50.5]} 10... a6 {[%clk 0:02:24.5]} 11. a3 {[%clk
0:02:49.7]} 11... b5 {[%clk 0:02:24.4]} 12. Qd3 {[%clk 0:02:47.1]} 12... Bb7
{[%clk 0:02:23.8]} 13. g3 {[%clk 0:02:44]} 13... Rc8 {[%clk 0:02:23.7]} 14. Be3
{[%clk 0:02:40.6]} 14... Na5 {[%clk 0:02:16.1]} 15. Rae1 {[%clk 0:02:31.8]}
15... Nc4 {[%clk 0:02:09.4]} 16. Bc1 {[%clk 0:02:29.8]} 16... Qa5 {[%clk
0:02:09.1]} 17. Ne2 {[%clk 0:02:17.1]} 17... b4 {[%clk 0:01:59.4]} 18. a4 {[%clk
0:02:14.3]} 18... b3 {[%clk 0:01:38.2]} 19. Bxb3 {[%clk 0:01:58.5]} 19... Ndb6
{[%clk 0:01:37.7]} 20. Nc3 {[%clk 0:01:54.9]} 20... Bb4 {[%clk 0:01:31.4]} 21.
Re2 {[%clk 0:01:29.4]} 21... Nxb2 {[%clk 0:00:56]} 22. Bxb2 {[%clk 0:01:28.9]}
22... Bxc3 {[%clk 0:00:56.2]} 23. Ba3 {[%clk 0:01:29.2]} 23... Bb4 {[%clk
0:00:33.3]} 24. Bxb4 {[%clk 0:01:28.4]} 24... Qxb4 {[%clk 0:00:34.2]} 25. Rb1
{[%clk 0:01:28.6]} 25... Rc3 {[%clk 0:00:31.8]} 26. Qd1 {[%clk 0:01:10.4]} 26...
Rxf3 {[%clk 0:00:21.9]} 27. Bxd5 {[%clk 0:01:09.8]} 27... Nxd5 {[%clk 0:00:21]}
28. Rxb4 {[%clk 0:01:09]} 28... Nxb4 {[%clk 0:00:21.9]} 29. Re3 {[%clk
0:00:51.8]} 29... Rxe3 {[%clk 0:00:19.8]} 30. fxe3 {[%clk 0:00:52.7]} 30... O-O
{[%clk 0:00:19.9]} 31. Qd2 {[%clk 0:00:50.6]} 31... a5 {[%clk 0:00:19.9]} 32.
Qe2 {[%clk 0:00:35.6]} 32... Ba6 {[%clk 0:00:18.2]} 33. Qf3 {[%clk 0:00:28.1]}
33... Rc8 {[%clk 0:00:18.1]} 34. e4 {[%clk 0:00:25.6]} 34... Rc1+ {[%clk
0:00:16.4]} 35. Kg2 {[%clk 0:00:25.6]} 35... Rc2+ {[%clk 0:00:12]} 36. Kh3
{[%clk 0:00:25.5]} 36... Bb7 {[%clk 0:00:09.1]} 37. Qe3 {[%clk 0:00:16.9]} 37...
h6 {[%clk 0:00:08.1]} 38. g4 {[%clk 0:00:10.9]} 38... Bc6 {[%clk 0:00:08.2]} 39.
g5 {[%clk 0:00:10.7]} 39... hxg5 {[%clk 0:00:08.1]} 40. Qxg5 {[%clk 0:00:09.9]}
40... Bxe4 {[%clk 0:00:04.8]} 41. Qd8+ {[%clk 0:00:09.4]} 41... Kh7 {[%clk
0:00:05.2]} 42. Qh4+ {[%clk 0:00:10]} 42... Kg8 {[%clk 0:00:05.7]} 43. Qxe4
{[%clk 0:00:10.9]} 43... Rc3+ {[%clk 0:00:05.6]} 44. Kg4 {[%clk 0:00:11.1]}
44... Nd5 {[%clk 0:00:06.5]} 45. Qe2 {[%clk 0:00:10.2]} 45... Re3 {[%clk
0:00:05.4]} 46. Qb5 {[%clk 0:00:07.9]} 46... Re4+ {[%clk 0:00:05.1]} 47. Kg3
{[%clk 0:00:08.3]} 47... Rxd4 {[%clk 0:00:04.6]} 48. Qxa5 {[%clk 0:00:08.8]}
48... g6 {[%clk 0:00:03.4]} 49. Qd8+ {[%clk 0:00:08.1]} 49... Kg7 {[%clk
0:00:03.9]} 50. Qa5 {[%clk 0:00:04.6]} 50... Rd3+ {[%clk 0:00:03.9]} 51. Kf2
{[%clk 0:00:04.6]} 51... g5 {[%clk 0:00:03.7]} 52. Qa7 {[%clk 0:00:04.6]} 52...
Nf4 {[%clk 0:00:03.8]} 53. a5 {[%clk 0:00:05]} 53... Ra3 {[%clk 0:00:04]} 54. a6
{[%clk 0:00:04.6]} 54... g4 {[%clk 0:00:04.6]} 55. Qb7 {[%clk 0:00:04.3]} 55...
Rf3+ {[%clk 0:00:03.5]} 56. Ke1 {[%clk 0:00:04.2]} 56... Nd3+ {[%clk 0:00:02.7]}
57. Kd2 {[%clk 0:00:04.4]} 57... Nc5 {[%clk 0:00:03.5]} 58. Qxf3 {[%clk
0:00:03.6]} 58... gxf3 {[%clk 0:00:02]} 59. a7 {[%clk 0:00:04]} 59... f2 {[%clk
0:00:02.1]} 60. Ke2 {[%clk 0:00:04.1]} 60... Ne4 {[%clk 0:00:02.3]} 61. a8=Q
{[%clk 0:00:03.5]} 61... Nc3+ {[%clk 0:00:03.1]} 62. Kxf2 {[%clk 0:00:03.4]}
62... Nd5 {[%clk 0:00:04]} 63. Kf3 {[%clk 0:00:03.8]} 1-0

[Event "*** SCC Grand Prix: Titled Tuesday Blitz"]
[Site "Chess.com"]
[Date "2020.08.11"]
[Round "4"]
[White "EndGameDestroyer"]
[Black "MrChampion_Coach"]
[Result "0-1"]
[WhiteElo "2234"]
[BlackElo "2432"]
[TimeControl "180+1"]
[EndTime "10:40:51 PDT"]
[Termination "MrChampion_Coach won on time"]

1. e4 {[%clk 0:03:00.9]} 1... c5 {[%clk 0:02:59.5]} 2. f4 {[%clk 0:03:00.7]}
2... d6 {[%clk 0:03:00.1]} 3. Nf3 {[%clk 0:03:00.9]} 3... Nc6 {[%clk 0:03:00.6]}
4. Bb5 {[%clk 0:03:01.2]} 4... Bd7 {[%clk 0:03:00.8]} 5. Nc3 {[%clk 0:03:01.4]}
5... g6 {[%clk 0:03:01]} 6. O-O {[%clk 0:03:01.5]} 6... Bg7 {[%clk 0:03:00.9]}
7. d3 {[%clk 0:03:01.9]} 7... Nf6 {[%clk 0:02:57.7]} 8. Ne2 {[%clk 0:02:59.1]}
8... Qc7 {[%clk 0:02:50.4]} 9. c3 {[%clk 0:02:57.7]} 9... a6 {[%clk 0:02:44.2]}
10. Ba4 {[%clk 0:02:57.7]} 10... e5 {[%clk 0:02:41.4]} 11. Bb3 {[%clk
0:02:50.5]} 11... O-O-O {[%clk 0:02:18.8]} 12. Bxf7 {[%clk 0:02:46.2]} 12... Bg4
{[%clk 0:02:13.9]} 13. Ng5 {[%clk 0:02:41.3]} 13... Kb8 {[%clk 0:02:07.6]} 14.
Be6 {[%clk 0:02:29.5]} 14... h6 {[%clk 0:01:57.7]} 15. fxe5 {[%clk 0:02:16.7]}
15... Nxe5 {[%clk 0:01:51.9]} 16. Bxg4 {[%clk 0:02:04.3]} 16... hxg5 {[%clk
0:01:50.6]} 17. Be6 {[%clk 0:01:54.4]} 17... d5 {[%clk 0:01:47.9]} 18. Ng3
{[%clk 0:01:43.8]} 18... dxe4 {[%clk 0:01:44.8]} 19. Bxg5 {[%clk 0:01:39.6]}
19... Rxd3 {[%clk 0:01:41.8]} 20. Qe2 {[%clk 0:01:28.9]} 20... Nd5 {[%clk
0:00:45.2]} 21. Qxe4 {[%clk 0:01:15.3]} 21... Qd6 {[%clk 0:00:29.2]} 22. Bf7
{[%clk 0:00:48]} 22... Ka7 {[%clk 0:00:23.6]} 23. c4 {[%clk 0:00:25.7]} 23...
Nb4 {[%clk 0:00:12.8]} 24. a3 {[%clk 0:00:18.8]} 24... Rd4 {[%clk 0:00:12.5]}
25. Qe2 {[%clk 0:00:17.6]} 25... Nbd3 {[%clk 0:00:12.2]} 26. b4 {[%clk
0:00:12.2]} 26... Ng4 {[%clk 0:00:12]} 27. bxc5 {[%clk 0:00:08]} 27... Qxc5
{[%clk 0:00:12.5]} 28. h3 {[%clk 0:00:05]} 28... Re4+ {[%clk 0:00:12.4]} 29. Kh1
{[%clk 0:00:01.6]} 29... Rxe2 {[%clk 0:00:12.3]} 30. Nxe2 {[%clk 0:00:02]} 30...
Qe3 {[%clk 0:00:12.4]} 31. Bxe3+ {[%clk 0:00:01.3]} 31... Nxe3 {[%clk
0:00:13.3]} 32. Rf3 {[%clk 0:00:01.5]} 32... Bxa1 {[%clk 0:00:12.2]} 33. Rxe3
{[%clk 0:00:01.8]} 33... Nc5 {[%clk 0:00:09.2]} 34. Bd5 {[%clk 0:00:02.1]} 34...
Bb2 {[%clk 0:00:07.6]} 35. Re7 {[%clk 0:00:02.6]} 35... Bf6 {[%clk 0:00:06.6]}
36. Rc7 {[%clk 0:00:01.6]} 36... Bb2 {[%clk 0:00:07.5]} 37. Rf7 {[%clk
0:00:02.1]} 37... Re8 {[%clk 0:00:06.4]} 38. Ng3 {[%clk 0:00:02.1]} 38... Re1+
{[%clk 0:00:06.3]} 39. Kh2 {[%clk 0:00:03]} 39... Be5 {[%clk 0:00:06.9]} 40. Rf3
{[%clk 0:00:03.6]} 40... g5 {[%clk 0:00:06.3]} 41. Rb3 {[%clk 0:00:02.1]} 41...
Bf4 {[%clk 0:00:05.6]} 42. Rf3 {[%clk 0:00:01.8]} 42... Be5 {[%clk 0:00:05.1]}
43. Bf7 {[%clk 0:00:01.5]} 43... Bf4 {[%clk 0:00:04.8]} 44. Bh5 {[%clk 0:00:02]}
44... Kb6 {[%clk 0:00:03.4]} 45. Bg4 {[%clk 0:00:02.5]} 45... Ka5 {[%clk
0:00:03.5]} 46. Rc3 {[%clk 0:00:02.4]} 46... Ka4 {[%clk 0:00:02.3]} 47. Rf3
{[%clk 0:00:02.4]} 47... a5 {[%clk 0:00:03.2]} 48. Bc8 {[%clk 0:00:02.6]} 48...
Rd1 {[%clk 0:00:03.4]} 49. Rc3 {[%clk 0:00:02.7]} 49... Rd8 {[%clk 0:00:04.3]}
50. Bf5 {[%clk 0:00:02.5]} 50... Rd4 {[%clk 0:00:04.9]} 51. Rf3 {[%clk 0:00:03]}
51... Rxc4 {[%clk 0:00:05]} 52. Be6 {[%clk 0:00:02.7]} 52... Rc1 {[%clk
0:00:05.9]} 53. Bf7 {[%clk 0:00:02.5]} 53... b5 {[%clk 0:00:05.9]} 54. Be8
{[%clk 0:00:02.7]} 54... Rb1 {[%clk 0:00:06.4]} 55. Rc3 {[%clk 0:00:02.1]} 55...
Nb7 {[%clk 0:00:04.8]} 56. Rd3 {[%clk 0:00:01.6]} 56... Rb3 {[%clk 0:00:04.6]}
57. Rd4+ {[%clk 0:00:01.4]} 57... Kxa3 {[%clk 0:00:03.4]} 58. Rd7 {[%clk
0:00:02]} 58... b4 {[%clk 0:00:04.1]} 59. Rxb7 {[%clk 0:00:01.8]} 59... Rxg3
{[%clk 0:00:04.5]} 60. Kg1 {[%clk 0:00:01.5]} 60... Re3 {[%clk 0:00:05]} 61. Bf7
{[%clk 0:00:01.7]} 61... Bg3 {[%clk 0:00:05.4]} 0-1